bitfinex-derivatives/quotes_ETHF0:USTF0_20251119
["timestamp","ask_amount","ask_price","bid_price","bid_amount"]
[1763554082224,0.76833,3093.7,3093.6,0.00244991]
[1763554082422,0.2443,3093.7,3093.6,0.77219991]
[1763554082630,3.3529,3094.0,3093.6,0.77219991]
[1763554082829,0.2443,3093.9,3093.8,0.2457]
[1763554083135,3.2078,3094.0,3093.9,0.76969]
[1763554083335,3.73178,3094.0,3093.9,0.2457]
[1763554083731,4.88877279,3094.4,3094.3,0.76963]
[1763554084039,0.76821,3094.4,3094.3,0.2457]
[1763554084237,0.76821,3094.4,3094.3,0.76963]
[1763554084634,0.2443,3094.4,3094.3,0.76963]
[1763554085335,4.36486279,3094.9,3094.5,0.2457]
[1763554085639,0.76817,3094.7,3094.6,0.2457]
[1763554086632,3.2078,3094.9,3092.4,43.848]
[1763554086633,0.76828,3094.0,3093.9,0.2457]
[1763554087236,0.76829,3093.9,3093.8,3.4535]
[1763554087735,0.2443,3093.9,3093.8,3.4535]
[1763554087937,0.2443,3093.9,3093.8,3.97751]
[1763554088236,1.15706279,3094.3,3094.0,0.52397]
[1763554088437,0.52399,3094.0,3093.9,0.2457]
[1763554088638,0.76829,3094.0,3093.9,0.2457]
[1763554089029,0.52395,3094.2,3094.1,0.76965]
[1763554089334,1.15706279,3094.8,3094.6,0.76958]
[1763554089542,0.76814,3094.8,3094.7,0.2457]
[1763554089742,0.2443,3094.6,3094.5,0.52389]
[1763554090240,0.52387,3094.7,3094.6,0.2457]
[1763554090535,0.76817,3094.7,3094.6,0.2457]
[1763554090836,0.2443,3094.2,3094.1,0.76966]
[1763554091135,0.37994622,3094.2,3094.1,0.2457]
[1763554091340,0.62424622,3094.2,3094.1,0.2457]
[1763554091530,0.2443,3094.2,3094.1,0.76966]
[1763554091736,0.52395,3094.2,3094.0,0.66056]
[1763554091936,0.52395,3094.2,3094.1,0.52396]
[1763554092241,0.52395,3094.2,3094.1,0.76966]
[1763554092439,1.15706279,3094.8,3094.3,0.2457]
[1763554092737,0.52389,3094.6,3094.5,0.3823]
[1763554093137,0.76824,3094.3,3094.0,0.1366]
[1763554093333,1.15706279,3094.8,3094.2,0.76964]
[1763554093540,1.15706279,3094.8,3094.6,0.2457]
[1763554093844,0.76816,3094.7,3094.6,0.2457]
[1763554094142,0.52386,3094.7,3094.6,0.2457]
[1763554094441,0.52388,3094.6,3094.5,0.1366]
[1763554094742,0.76818,3094.6,3094.5,0.3823]
[1763554095844,0.52385,3094.8,3094.7,0.2457]
[1763554096135,0.52387,3094.7,3094.5,0.66049]
[1763554096439,4.36486279,3094.9,3094.7,0.2457]
[1763554096633,0.52384,3094.8,3094.7,0.2457]
[1763554096832,0.52388,3094.6,3094.5,0.3823]
[1763554097340,0.52386,3094.7,3094.6,0.2457]
[1763554097542,3.73163,3094.9,3094.8,0.2457]
[1763554098344,3.73163,3094.9,3094.8,0.76954]
[1763554099037,1.40136279,3095.2,3095.1,0.2457]
[1763554099336,0.76807,3095.2,3095.1,0.2457]
[1763554099532,0.53102352,3095.3,3095.2,0.76947]
[1763554099843,0.00726352,3095.3,3095.2,0.76947]
[1763554111643,0.00726352,3095.3,3095.2,0.2457]
[1763554111944,0.00726352,3095.3,3095.2,0.76947]
[1763554113141,0.52364,3096.0,3095.9,0.52362]
[1763554113445,0.52364,3096.0,3095.5,0.1333]
[1763554113446,0.7693,3096.3,3096.2,0.2307]
[1763554113845,0.7693,3096.3,3096.2,0.75431]
[1763554114039,0.77245338,3096.3,3096.2,0.00403475]
[1763554114548,0.2457,3095.4,3095.3,0.52376]
[1763554114850,0.76947,3095.2,3095.1,3.2078]
[1763554115032,3.2078,3095.9,3095.5,0.1333]
[1763554115234,0.2457,3095.7,3095.6,0.75441]
[1763554115432,3.2078,3095.9,3095.6,0.75441]
[1763554115433,3.4535,3095.9,3095.8,0.75437]
[1763554115636,0.2457,3095.8,3095.7,0.52368]
[1763554116245,0.76937,3095.8,3095.6,0.52739039]
[1763554116447,0.76937,3095.8,3095.7,0.52369]
[1763554118143,0.2457,3095.8,3095.7,0.52369]
[1763554118450,0.76937,3095.8,3095.7,0.2307]
[1763554118748,0.76937,3095.8,3095.7,0.75439]
[1763554119051,0.2457,3095.7,3095.6,0.75810039]
[1763554119351,3.97716,3095.9,3095.8,0.2307]
[1763554119646,3.73146,3095.9,3095.8,0.2307]
[1763554120147,3.97716,3095.9,3095.8,0.75437]
[1763554120449,3.97716,3095.9,3095.8,0.2307]
[1763554120746,0.76939,3095.7,3095.6,0.23439039]
[1763554120937,0.76939,3095.7,3095.6,0.00369039]
[1763554122145,1.09289,3095.7,3095.6,0.00369039]
[1763554122342,0.76939,3095.7,3095.6,0.00369039]
[1763554123249,1.09289,3095.7,3095.6,0.00369039]
[1763554123451,2.24995279,3095.7,3095.6,0.00369039]
[1763554123640,0.76947,3095.2,3095.1,3.2078]
[1763554123842,0.1279,3095.5,3094.5,1.29473944]
[1763554123843,0.52383,3094.9,3094.8,0.2307]
[1763554124043,0.2457,3094.6,3094.5,0.3673]
[1763554124245,0.2457,3094.6,3094.5,0.89119]
[1763554124444,0.52387,3094.7,3094.6,0.75458]
[1763554124651,0.52387,3094.7,3094.6,0.75788894]
[1763554124856,0.76957,3094.7,3094.6,0.23400894]
[1763554125058,0.76957,3094.7,3094.6,0.00330894]
[1763554125258,0.76956,3094.7,3094.6,0.52718894]
[1763554125462,0.2457,3094.7,3094.6,0.52718894]
[1763554125642,3.2078,3095.0,3094.7,0.75455]
[1763554125849,0.76954,3094.8,3094.7,0.2307]
[1763554126955,0.76956,3094.7,3094.6,0.00330894]
[1763554134063,0.76956,3094.7,3094.6,0.23400894]
[1763554134962,0.76956,3094.7,3094.6,0.00330894]
[1763554136565,0.76956,3094.7,3094.6,0.52718894]
[1763554136756,0.76956,3094.7,3094.6,0.75788894]
[1763554137366,0.76956,3094.7,3094.6,0.23400894]
[1763554137565,0.52386,3094.7,3094.6,0.23400894]
[1763554137765,0.52385,3094.8,3094.7,0.75455]
[1763554137965,0.76955,3094.8,3094.7,0.75455]
[1763554138158,0.76954,3094.8,3094.7,0.75455]
[1763554138967,0.2457,3094.8,3094.7,0.75455]
[1763554139159,0.76954,3094.8,3094.7,0.2307]
[1763554139460,0.76956,3094.7,3094.6,0.00330894]
[1763554139664,0.2457,3094.7,3094.6,0.75788894]
[1763554140057,0.76956,3094.7,3094.6,0.75788894]
[1763554140257,0.76956,3094.7,3094.6,0.23400894]
[1763554140658,0.76956,3094.7,3094.6,0.75788894]
[1763554140868,0.76956,3094.7,3094.6,0.00330894]
[1763554141261,0.76956,3094.7,3094.6,0.52718894]
[1763554141564,0.76956,3094.7,3094.6,0.00330894]
[1763554141766,0.76956,3094.7,3094.6,0.52718894]
[1763554142160,0.76956,3094.7,3094.6,0.00330894]
[1763554146869,0.76956,3094.7,3094.6,8.94e-06]
[1763554147268,0.2445,3093.7,3093.6,0.229]
[1763554147662,0.76853,3093.7,3093.6,0.229]
[1763554148370,0.00417099,3093.7,3093.6,0.75548006]
[1763554150568,3.73168,3094.6,3094.5,0.3685]
[1763554150873,3.97618,3094.6,3094.5,0.3685]
[1763554151267,0.52394,3094.2,3094.1,0.75296]
[1763554151668,0.77125158,3094.2,3094.1,0.229]
[1763554151869,0.00281158,3094.2,3094.1,0.75296]
[1763554153774,0.52675158,3094.2,3094.1,0.75296]
[1763554154078,0.00281158,3094.2,3094.1,0.75296]
[1763554156076,0.00281158,3094.2,3094.1,3.96076]
[1763554156272,0.00281158,3094.2,3094.1,3.4368]
[1763554156471,0.00281158,3094.2,3094.1,3.96076]
[1763554157076,1.15706279,3094.8,3094.7,0.229]
[1763554157379,0.76833,3094.9,3094.8,0.229]
[1763554157578,0.76833,3094.9,3094.8,0.75284]
[1763554157775,1.15706279,3095.2,3094.6,3.2078]
[1763554157776,0.76831,3095.1,3095.0,0.229]
[1763554157978,0.76831,3095.1,3095.0,0.89231]
[1763554158169,0.77152928,3095.1,3095.0,0.89231]
[1763554158576,0.00321928,3095.1,3095.0,0.89231]
[1763554159273,0.52700928,3095.1,3095.0,0.89231]
[1763554159872,0.77150928,3095.1,3095.0,0.3685]
[1763554160580,0.52381,3095.0,3094.9,0.75283]
[1763554160776,0.76831,3095.0,3094.9,0.75283]
[1763554160983,0.76831,3095.0,3094.9,0.229]
[1763554161184,0.2445,3095.0,3094.9,0.229]
[1763554161373,0.2445,3095.0,3094.9,0.75283]
[1763554161680,0.52700928,3095.1,3095.0,0.89231]
[1763554161976,0.00321928,3095.1,3095.0,0.89231]
[1763554162777,0.52700928,3095.1,3095.0,0.89231]
[1763554162976,0.52700928,3095.1,3095.0,0.3685]
[1763554163188,0.77150928,3095.1,3095.0,0.3685]
[1763554163974,0.75041,3095.0,3094.9,0.52382]
[1763554164175,0.75041,3095.0,3094.9,0.75532]
[1763554165069,0.00321928,3095.1,3094.6,3.4393]
[1763554165070,0.75046,3094.7,3094.6,3.4393]
[1763554165478,0.52386,3094.7,3094.6,3.4393]
[1763554166288,0.75360928,3095.1,3095.0,0.3768]
[1763554166783,0.00321928,3095.1,3095.0,0.90061]
[1763554166984,0.52700928,3095.1,3095.0,0.90061]
[1763554167684,0.00321928,3095.1,3095.0,0.90061]
[1763554168187,0.52700928,3095.1,3095.0,0.90061]
[1763554170691,0.00321928,3095.1,3095.0,0.90061]
[1763554171891,0.52700928,3095.1,3095.0,0.90061]
[1763554172096,0.00321928,3095.1,3095.0,0.90061]
[1763554172387,0.00321928,3095.1,3095.0,4.10841]
[1763554173191,0.00484966,3095.4,3095.3,0.2462]
[1763554173789,0.00484966,3095.4,3095.3,0.76996]
[1763554173989,0.52858966,3095.4,3095.3,0.76996]
[1763554174196,0.53203438,3095.4,3095.3,0.76996]
[1763554174488,0.00829438,3095.4,3095.3,0.76996]
[1763554179595,0.53203438,3095.4,3095.3,0.76996]
[1763554179887,0.00829438,3095.4,3095.3,0.76996]
[1763554180795,0.00829438,3095.4,3095.3,1.89358523]
[1763554181297,0.53203438,3095.4,3095.3,1.36982523]
[1763554182089,0.00829438,3095.4,3095.3,1.89358523]
[1763554183288,0.2232,3095.7,3095.6,0.76991]
[1763554183996,0.74689,3095.7,3095.6,0.2462]
[1763554184292,0.22727154,3095.7,3095.6,0.76991]
[1763554184498,0.75096154,3095.7,3095.6,0.76991]
[1763554186291,0.00407154,3095.7,3095.6,0.76991]
[1763554186596,0.00407154,3095.7,3095.6,1.89353523]
[1763554188200,0.00407154,3095.7,3095.6,1.93239265]
[1763554188394,0.00407154,3095.7,3095.6,0.76991]
[1763554192696,0.75096154,3095.7,3095.6,0.2462]
[1763554193100,0.52776154,3095.7,3095.6,0.2462]
[1763554193296,0.52369,3095.7,3095.6,0.76988]
[1763554193497,0.52369,3095.7,3095.6,1.89350523]
[1763554193998,0.52369,3095.7,3095.6,1.36982523]
[1763554194298,0.52691196,3095.7,3095.6,1.36982523]
[1763554194493,0.75011196,3095.7,3095.6,0.2462]
[1763554195303,0.75011196,3095.7,3095.6,0.76991]
[1763554195497,1.07361196,3095.7,3095.6,0.76991]
[1763554196005,1.07361196,3095.7,3095.6,0.2462]
[1763554197203,0.74691,3095.6,3095.5,3.5997]
[1763554197503,0.74696,3095.3,3095.2,0.2462]
[1763554199603,0.74696,3095.3,3095.2,0.76997]
[1763554201109,0.52374,3095.4,3095.3,0.76996]
[1763554201496,0.74692,3095.5,3095.4,0.76993]
[1763554201702,0.74692,3095.5,3095.4,0.2462]
[1763554201896,0.74692,3095.5,3095.1,4.89406265]
[1763554201897,0.75427,3095.2,3095.1,4.37028265]
[1763554202200,0.75427,3095.2,3095.0,0.15014966]
[1763554202201,0.75429,3095.1,3095.0,0.00484966]
[1763554203303,0.2305,3095.1,3095.0,0.00484966]
[1763554204411,0.75429,3095.1,3095.0,0.00484966]
[1763554205004,1.87791523,3095.1,3095.0,0.00484966]
[1763554205211,0.75441,3094.4,3094.3,3.4403]
[1763554205404,0.75441,3094.4,3094.3,3.96423]
[1763554205712,0.75441,3094.4,3094.3,3.4403]
[1763554206307,0.75441,3094.4,3094.3,3.2078]
[1763554206508,0.75441,3094.4,3094.3,3.4403]
[1763554207110,0.75441,3094.4,3094.3,3.2078]
[1763554207304,0.75441,3094.4,3094.0,0.00484966]
[1763554207305,0.75446,3094.1,3094.0,0.00484966]
[1763554208407,1.87808523,3094.1,3094.0,0.00484966]
[1763554209601,0.75453,3093.7,3093.6,0.00243006]
[1763554210310,0.75465,3093.0,3092.9,3.4403]
[1763554211312,1.25432523,3093.5,3092.9,3.96446]
[1763554211313,0.52413,3093.1,3092.9,3.96446]
[1763554211515,0.52711771,3093.1,3093.0,0.3737]
[1763554212214,0.75465,3093.0,3092.9,3.21126456]
[1763554212405,0.75465,3093.0,3092.9,3.44376456]
[1763554213100,0.75465,3093.0,3092.9,3.21126456]
[1763554214413,0.83745,3093.0,3092.9,0.00346456]
[1763554215511,4.04525,3093.0,3092.9,0.00346456]
[1763554216514,3.96245,3093.0,3092.9,0.00346456]
[1763554217616,0.00298771,3093.1,3093.0,0.89785]
[1763554217918,3.96231,3093.8,3093.7,0.2325]
[1763554218312,0.2305,3093.4,3093.3,3.73189]
[1763554218611,0.75458,3093.4,3093.3,3.9644]
[1763554218817,0.75835533,3093.4,3093.3,3.4403]
[1763554219822,0.75835533,3093.4,3093.3,3.9644]
[1763554220114,0.75835533,3093.4,3093.3,3.4403]
[1763554220115,0.52785533,3093.4,3093.3,3.4403]
[1763554220618,0.75465,3093.0,3092.9,3.21126456]
[1763554220919,0.75465,3093.0,3092.9,3.44376456]
[1763554221312,0.75465,3093.0,3092.9,0.00346456]
[1763554222314,0.83745,3093.0,3092.9,0.00346456]
[1763554223015,0.75465,3093.0,3092.9,0.23596456]
[1763554223519,0.75465,3093.0,3092.9,0.00346456]
[1763554224021,0.75465,3093.0,3092.9,0.23596456]
[1763554224429,0.75465,3093.0,3092.9,0.00346456]
[1763554224623,0.83765,3093.0,3092.9,0.00346456]
[1763554224824,0.7547,3092.7,3092.6,0.00484966]
[1763554225823,0.7547,3092.7,3092.6,0.00866183]
[1763554226127,0.5242,3092.7,3092.6,0.23576183]
[1763554226628,0.52419,3092.8,3092.7,0.75129]
[1763554227129,0.52419,3092.8,3092.7,0.2271]
[1763554227330,0.75469,3092.8,3092.7,0.2271]
[1763554227728,0.52419,3092.8,3092.7,0.2271]
[1763554227929,0.75469,3092.8,3092.7,0.2271]
[1763554228123,0.7547,3092.7,3092.6,0.23576183]
[1763554228430,0.75949966,3093.0,3092.9,0.2271]
[1763554228937,0.7547,3092.7,3092.6,0.23576183]
[1763554229127,0.7547,3092.7,3092.6,0.00866183]
[1763554231623,3.9625,3092.7,3092.6,0.00866183]
[1763554231924,0.77095,3091.8,3091.7,3.97366]
[1763554232128,3.2078,3092.3,3091.7,3.97366]
[1763554232332,0.52435,3091.8,3091.7,3.4493]
[1763554233032,0.52435,3091.8,3091.7,3.4529065]
[1763554233827,0.52435,3091.8,3091.7,3.9772765]
[1763554234729,0.52435,3091.8,3091.7,3.4529065]
[1763554234926,0.77095,3091.8,3091.7,3.4529065]
[1763554235925,0.77095,3091.8,3091.7,0.0036065]
[1763554238234,0.77107,3091.1,3091.0,0.3827]
[1763554238927,0.52449,3091.0,3090.9,3.2078]
[1763554239127,0.77109,3091.0,3090.9,3.2078]
[1763554239328,0.7746947,3091.0,3090.9,3.21074283]
[1763554239531,0.8576947,3091.0,3090.9,3.21074283]
[1763554239927,0.8576947,3091.0,3090.6,0.00484966]
[1763554239928,0.77114,3090.7,3090.6,0.00484966]
[1763554240323,0.77114,3090.7,3090.0,0.1366]
[1763554240324,0.2466,3090.1,3090.0,3.2078]
[1763554240528,0.77124,3090.1,3090.0,3.5859]
[1763554240737,0.77132,3089.6,3089.2,3.2078]
[1763554240932,0.77137,3089.3,3089.2,3.4493]
[1763554241127,0.52489,3088.6,3088.3,3.2078]
[1763554241340,0.00292761,3088.6,3088.5,0.3781]
[1763554241648,0.00292761,3088.6,3088.5,0.38157387]
[1763554242035,3.2078,3089.3,3088.5,0.38157387]
[1763554242036,3.2078,3089.3,3089.2,0.2415]
[1763554242736,3.2078,3089.9,3089.2,3.97409]
[1763554243047,3.21526407,3089.9,3089.8,0.2415]
[1763554243347,0.00746407,3089.9,3089.8,0.2415]
[1763554243546,0.00746407,3089.9,3089.6,3.2078]
[1763554243547,0.52469,3089.8,3089.6,3.2078]
[1763554243747,0.52477,3089.4,3089.1,3.73261]
[1763554243945,3.21526407,3089.9,3089.2,0.2415]
[1763554244747,3.21526407,3089.9,3089.3,0.2415]
[1763554244951,3.21526407,3089.9,3089.1,3.2078]
[1763554244952,0.52479,3089.2,3089.1,3.4493]
[1763554245242,3.21526407,3089.9,3088.7,3.4493]
[1763554245243,0.52486,3088.8,3088.7,3.4493]
[1763554245648,3.2078,3089.4,3088.7,3.4493]
[1763554245951,0.52481,3089.1,3089.0,0.3781]
[1763554247552,0.52478,3089.3,3089.2,0.2415]
[1763554247845,3.4544,3089.8,3089.5,0.1366]
[1763554248047,0.52472,3089.6,3089.5,0.1366]
[1763554248246,0.52472,3089.6,3089.5,0.3781]
[1763554249354,0.52479,3089.3,3089.2,0.2415]
[1763554249853,0.52479,3089.3,3089.2,0.76629]
[1763554250451,3.2078,3089.8,3089.2,0.76629]
[1763554250751,3.2078,3089.8,3089.1,3.2078]
[1763554250752,0.53213407,3089.9,3089.8,0.2415]
[1763554250949,0.77873407,3089.9,3089.8,0.2415]
[1763554251151,0.52472,3089.6,3089.5,0.3781]
[1763554251355,0.77132,3089.6,3089.5,0.3781]
[1763554251950,0.52479,3089.2,3089.1,3.4493]
[1763554252562,0.52479,3089.2,3089.1,3.97411]
[1763554253358,0.52479,3089.2,3089.1,3.4493]
[1763554255352,0.52479,3089.2,3089.1,0.2415]
[1763554255557,0.52481,3089.1,3089.0,0.1366]
[1763554256059,0.52481,3089.1,3089.0,0.3781]
[1763554256755,0.52486,3088.8,3088.7,3.4493]
[1763554258667,0.52486,3088.8,3088.7,3.97418]
[1763554258964,0.52483,3089.0,3088.9,0.76634]
[1763554259170,0.52482,3089.1,3089.0,0.6614]
[1763554259375,0.52482,3089.1,3089.0,0.9029]
[1763554259961,0.52481,3089.1,3089.0,0.3781]
[1763554260364,0.77141,3089.1,3089.0,0.3781]
[1763554260667,0.77149,3088.6,3088.5,0.00347387]
[1763554260962,0.52506,3087.6,3087.5,0.3781]
[1763554261469,3.2078,3088.0,3086.2,1.94285892]
[1763554261470,0.52515,3087.1,3087.0,3.5859]
[1763554261970,0.52783777,3087.1,3087.0,3.58947732]
[1763554262160,0.77443777,3087.1,3087.0,3.21137732]
[1763554262361,0.7716,3086.8,3086.7,0.00485822]
[1763554262767,0.5252,3086.8,3086.7,0.24645822]
[1763554263066,0.00268777,3087.1,3087.0,0.3811]
[1763554263273,0.24908777,3087.1,3087.0,0.3811]
[1763554263572,0.00268777,3087.1,3087.0,0.38476645]
[1763554263767,0.24908777,3087.1,3087.0,0.00366645]
[1763554264270,0.00268777,3087.1,3087.0,0.38476645]
[1763554264974,3.45688777,3087.1,3087.0,0.00366645]
[1763554265370,3.45688777,3087.1,3086.7,0.00485822]
[1763554265371,0.7716,3086.8,3086.7,0.00485822]
[1763554265968,0.5252,3086.8,3086.7,0.24645822]
[1763554266270,0.52518,3086.9,3086.8,0.2416]
[1763554266471,0.52518,3086.9,3086.8,0.24398639]
[1763554266972,0.77158,3086.9,3086.8,0.24398639]
[1763554267274,0.77158,3086.9,3086.8,0.00238639]
[1763554268366,3.21048777,3087.1,3087.0,0.3811]
[1763554268565,3.73563777,3087.1,3087.0,0.3811]
[1763554269267,0.00268777,3087.1,3087.0,0.90627]
[1763554269463,0.00268777,3087.1,3087.0,0.3811]
[1763554269966,0.2464,3086.9,3086.8,0.00238639]
[1763554270164,0.77158,3086.9,3086.8,0.00238639]
[1763554273074,0.2464,3086.1,3086.0,3.3444]
[1763554273264,0.52518,3086.9,3085.6,0.2416]
[1763554273265,0.52539,3085.7,3085.6,0.2416]
[1763554273864,0.52545,3085.4,3085.2,3.2078]
[1763554274061,0.52545,3085.4,3085.2,3.21036239]
[1763554274477,0.52545,3085.4,3085.3,0.2416]
[1763554276064,0.00485822,3085.6,3085.3,0.2416]
[1763554276273,0.00485822,3085.6,3085.5,0.90652]
[1763554276568,0.53025822,3085.6,3085.5,0.3811]
[1763554276775,0.77185,3085.3,3085.2,0.00256239]
[1763554277176,0.52545,3085.3,3085.2,0.24416239]
[1763554277486,0.77189,3085.1,3085.0,0.00325309]
[1763554277670,0.52566,3084.1,3084.0,3.5889]
[1763554278467,0.52564,3084.3,3084.2,0.2416]
[1763554278666,0.52937681,3084.3,3084.2,0.2416]
[1763554278876,0.00373681,3084.3,3084.2,0.76724]
[1763554279278,0.52936681,3084.3,3084.2,0.2416]
[1763554279478,0.00373681,3084.3,3084.2,0.76724]
[1763554279679,0.52936681,3084.3,3084.2,0.2416]
[1763554279982,0.00373681,3084.3,3084.2,0.76724]
[1763554280172,0.52554,3084.9,3084.7,0.52555]
[1763554280371,0.52554,3084.9,3084.8,0.2416]
[1763554281178,3.73329,3085.1,3085.0,0.90661]
[1763554281481,3.21075936,3085.1,3085.0,0.3811]
[1763554281680,3.73624936,3085.1,3085.0,0.90661]
[1763554281884,0.52844936,3085.1,3085.0,0.3811]
[1763554283080,0.00295936,3085.1,3085.0,0.90661]
[1763554283284,0.52844936,3085.1,3085.0,0.3811]
[1763554283783,0.52844936,3085.1,3085.0,0.90661]
[1763554283986,0.00295936,3085.1,3085.0,0.90661]
[1763554284180,0.52844936,3085.1,3085.0,0.90661]
[1763554284786,0.52844936,3085.1,3085.0,0.3811]
[1763554285378,0.52555,3084.8,3084.7,0.2448]
[1763554285872,0.52552,3085.0,3084.7,0.77036]
[1763554286077,0.52554,3084.9,3084.8,0.2448]
[1763554286786,0.52557,3084.6,3084.5,3.5921]
[1763554287184,0.52557,3084.6,3084.5,3.5987]
[1763554287386,3.73624936,3085.1,3085.0,0.3909]
[1763554288988,0.00295936,3085.1,3085.0,0.91641]
[1763554291090,0.53025822,3085.6,3085.5,0.3909]
[1763554291481,0.00485822,3085.6,3085.5,0.91632]
[1763554292179,0.53262635,3085.6,3085.5,0.91632]
[1763554293788,0.00722635,3085.6,3085.5,0.91632]
[1763554294586,0.52532,3086.2,3086.1,0.52532]
[1763554294888,3.73307,3086.4,3086.3,0.2369]
[1763554295089,4.45611419,3086.4,3086.3,0.2369]
[1763554295590,0.76062,3086.1,3086.0,0.00485822]
[1763554295891,0.7607,3085.6,3085.5,0.383]
[1763554296091,0.7607,3085.6,3085.5,0.38572543]
[1763554296489,0.5254,3085.6,3085.5,0.38572543]
[1763554296797,0.5254,3085.7,3085.6,0.2369]
[1763554297088,0.7607,3085.7,3085.6,0.2369]
[1763554297292,0.5254,3085.7,3085.6,0.2369]
[1763554297586,0.7607,3085.7,3085.6,0.2369]
[1763554297792,0.5254,3085.7,3085.6,0.2369]
[1763554299901,0.5254,3085.6,3085.5,0.14882543]
[1763554300087,0.5254,3085.6,3085.5,0.38572543]
[1763554302581,0.7607,3085.6,3085.5,0.14882543]
[1763554302895,0.7607,3085.6,3085.5,0.38572543]
[1763554303100,0.52539,3085.7,3085.6,0.2369]
[1763554303391,0.7607,3085.6,3085.5,0.14882543]
[1763554303600,0.7607,3085.6,3085.5,0.00272543]
[1763554304097,1.48605485,3085.6,3085.5,0.00272543]
[1763554307290,4.69385485,3085.6,3085.5,0.00272543]
[1763554307504,0.76079,3085.1,3085.0,3.2078]
[1763554307697,4.36870854,3085.6,3085.2,0.2369]
[1763554307888,0.72508917,3085.5,3085.2,0.2369]
[1763554308097,0.72508917,3085.4,3085.3,0.2369]
[1763554308486,0.72508917,3085.4,3085.3,0.2409801]
[1763554308688,1.25052917,3085.4,3085.3,0.2409801]
[1763554308891,1.48582917,3085.4,3085.3,0.2409801]
[1763554309092,1.48582917,3085.4,3085.3,0.0040801]
[1763554310499,1.48582917,3085.4,3085.3,0.2409801]
[1763554310500,2.11827709,3085.4,3085.3,0.2409801]
[1763554310692,1.48582917,3085.4,3085.3,0.0040801]
[1763554316596,0.52557,3084.6,3084.5,0.383]
[1763554316789,0.72508917,3085.4,3084.2,3.2078]
[1763554316790,0.52563,3084.3,3084.2,3.4447]
[1763554316992,0.76093,3084.3,3084.2,3.4447]
[1763554317392,0.52563,3084.3,3084.2,3.4447]
[1763554317593,3.21265822,3084.9,3084.2,3.973484]
[1763554317794,0.5256,3084.5,3084.4,0.2369]
[1763554318102,0.7609,3084.5,3084.4,0.2369]
[1763554318904,0.5256,3084.5,3084.4,0.2369]
[1763554319600,0.5256,3084.5,3084.4,0.76251]
[1763554319806,0.52558,3084.6,3084.5,0.90289]
[1763554320009,0.52558,3084.6,3084.5,0.3773]
[1763554320701,0.52558,3084.6,3084.5,0.90289]
[1763554320908,0.52558,3084.6,3084.5,0.3773]
[1763554321400,3.21265822,3084.9,3084.5,0.3773]
[1763554321401,3.21265822,3084.9,3084.8,0.76244]
[1763554321593,0.53037822,3084.9,3084.8,0.2369]
[1763554321797,0.53037822,3084.9,3084.8,0.76244]
[1763554322403,0.00485822,3084.9,3084.8,0.76244]
[1763554323204,0.52549,3085.2,3085.1,0.76219]
[1763554323806,0.52549,3085.2,3085.1,3.96999]
[1763554324606,0.53027822,3085.5,3085.4,0.76214]
[1763554324906,0.53027822,3085.5,3085.4,0.2367]
[1763554327104,0.00485822,3085.5,3085.4,0.2367]
[1763554327310,0.00485822,3085.5,3085.4,0.76214]
[1763554327608,0.52541,3085.6,3085.5,0.3731]
[1763554327906,3.2078,3086.2,3085.5,3.5809]
[1763554328107,0.95990691,3086.1,3085.5,3.3442]
[1763554328308,0.5254,3085.6,3085.5,3.5809]
[1763554328913,0.24075822,3085.9,3085.5,3.86962]
[1763554329103,0.7613,3085.6,3085.5,3.5809]
[1763554329410,0.00485822,3085.9,3085.1,3.96999]
[1763554329411,0.52547,3085.2,3085.1,3.96999]
[1763554329599,0.52545,3085.3,3085.2,0.2367]
[1763554331715,0.76137,3085.2,3085.1,3.2078]
[1763554332020,0.76137,3085.2,3085.1,3.4445]
[1763554332606,0.76139,3085.1,3085.0,0.1364]
[1763554332809,1.48566809,3085.1,3085.0,0.1364]
[1763554333005,0.72427809,3085.1,3085.0,0.3731]
[1763554333313,0.52548,3085.2,3085.1,0.2367]
[1763554333816,0.52543,3085.5,3085.4,0.2367]
[1763554334419,0.76133,3085.5,3085.4,0.2367]
[1763554334610,1.48586167,3085.5,3085.4,0.2367]
[1763554334805,1.24996167,3085.5,3085.4,0.2367]
[1763554335117,0.52543,3085.5,3085.4,0.2367]
[1763554336304,0.00485822,3085.9,3085.4,0.2367]
[1763554336305,0.00485822,3085.9,3085.5,0.3731]
[1763554336510,0.7613,3085.6,3085.5,0.3731]
[1763554336820,0.2359,3085.6,3085.5,0.3731]
[1763554337318,0.7613,3085.6,3085.5,0.3731]
[1763554337715,0.76610822,3085.9,3085.8,0.2367]
[1763554337914,1.49037775,3085.9,3085.8,0.2367]
[1763554339111,0.7613,3085.6,3085.5,3.5809]
[1763554339514,0.7613,3085.6,3085.5,3.3442]
[1763554339706,0.7613,3085.6,3085.1,3.2078]
[1763554339707,0.76137,3085.2,3085.1,3.2078]
[1763554339910,0.76137,3085.2,3085.1,3.4445]
[1763554340108,0.76137,3085.2,3085.1,3.2078]
[1763554340311,0.52554,3084.8,3084.7,3.4445]
[1763554340514,0.76144,3084.8,3084.7,3.97006]
[1763554340715,0.1365,3085.5,3084.8,0.76224]
[1763554340716,0.52552,3084.9,3084.8,0.76224]
[1763554340923,0.52552,3084.9,3084.8,0.2367]
[1763554341308,0.2359,3085.1,3085.0,0.3731]
[1763554342217,3.73317,3085.8,3085.7,0.2367]
[1763554342409,1.4856258,3085.8,3085.7,0.2367]
[1763554343218,1.2497258,3085.8,3085.7,0.2367]
[1763554343417,0.52537,3085.8,3085.7,0.76209]
[1763554346321,0.00485822,3085.9,3085.8,0.75737]
[1763554346618,0.00485822,3085.9,3085.8,3.96517]
[1763554347525,0.53020822,3085.9,3085.8,3.4398]
[1763554347916,0.75710822,3085.9,3085.8,3.2078]
[1763554348325,0.53020822,3085.9,3085.8,3.96517]
[1763554350127,0.00485822,3085.9,3085.8,3.96517]
[1763554350821,0.75710822,3085.9,3085.8,3.4398]
[1763554351616,0.00485822,3085.9,3085.8,3.96517]